[Event "4NCL 2023-2024"]
[Site "Daventry"]
[Date "2024.05.06"]
[Round "11.36"]
[White "Willow, Jonah B"]
[Black "Khoury, Theo"]
[Result "1/2-1/2"]
[ECO "B23"]
[WhiteElo "2417"]
[BlackElo "2071"]
[Annotator "TA"]
[PlyCount "82"]
[EventDate "2023.11.11"]
[EventType "team-tourn"]
[EventCountry "ENG"]
[SourceTitle "playchess.com"]
[Source "ChessBase"]
[SourceQuality "1"]
[TimeControl "40/6000+30:3000+30"]

{[%evp 9,82,0,15,10,33,32,77,79,72,79,72,46,167,52,62,69,87,72,125,148,191,165,194,111,108,98,91,85,176,174,191,153,168,168,201,202,205,195,204,204,198,142,141,14,24,8,2,0,9,0,0,-12,-7,-22,0,0,72,49,63,50,148,143,130,142,149,167,140,96,90,0,0,0,0,0,0]} 1. e4 {[%emt 0:00:05]} c5 {[%emt 0:00:09]} 2. Nc3 {[%emt 0:00:44]} a6 {[%emt 0:00:06]} 3. d4 {[%emt 0:01:04]} cxd4 {[%emt 0:00:16]} 4. Qxd4 {[%emt 0:00:04]} Nc6 {[%emt 0:02:45]} 5. Qe3 {[%emt 0:00:35]} g6 {[%emt 0:06:29]} 6. Bd2 {[%emt 0:01:07]} Bh6 {[%emt 0:05:52]} 7. f4 {[%emt 0:05:34]} e5 {[%emt 0:07:00]} 8. Nd5 {[%emt 0:07:59] White is better.} d6 {[%emt 0:08:03] [#]} 9. O-O-O $1 {[%emt 0:10:18]} Be6 {[%emt 0:02:14]} 10. Kb1 {[%emt 0:15:17]} b5 {[%emt 0:15:11]} (10... Nf6 $14) 11. Qf2 {[%emt 0:04:36]} (11. Qa3 $18) 11... Bg7 {[%emt 0:06:43]} 12. Nf3 {[%emt 0:04:34]} Nge7 {[%emt 0:06:18]} 13. Bc3 {[%emt 0:28:11]} Qb8 {[%emt 0:09:47]} ({Better is} 13... O-O) 14. Nxe7 $16 {[%emt 0:04:16]} Kxe7 {[%emt 0:08:17]} 15. fxe5 {[%emt 0:06:53]} Nxe5 {[%emt 0:00:18]} 16. Nxe5 {[%emt 0:10:03]} (16. Be2 $18) 16... Bxe5 {[%emt 0:00:18]} 17. Bxe5 {[%emt 0:00:20]} dxe5 {[%emt 0:00:07]} 18. Be2 {[%emt 0:01:45]} f6 {[%emt 0:05:10] [#]} (18... Qc7 $16) 19. Rhf1 $1 $18 {[%emt 0:00:49]} Rf8 {[%emt 0:00:11]} 20. Qc5+ {[%emt 0:00:24]} Kf7 {[%emt 0:00:55]} 21. Rd6 {[%emt 0:00:42][%cal Bd1d6,Bd6b6,Bb6b7][%mdl 32]} Rd8 {[%emt 0:04:22]} 22. Rb6 {[%emt 0:03:00]} (22. Rxd8 Qxd8 23. Qxe5 Qe7 $16) 22... Qa7 {[%emt 0:01:04]} 23. Qc6 $1 {[%emt 0:00:24]} Qe7 {[%emt 0:02:05]} 24. Rb7 $1 {[%emt 0:00:07]} ({But not} 24. Rxa6 Rxa6 25. Qxa6 b4 $14) 24... Bd7 {[%emt 0:00:30]} 25. Qd5+ {[%emt 0:01:34]} (25. Qb6 $18 {And now Rd1 would win.} Qe6 26. Qxe6+ Kxe6 27. Bg4+ Ke7 28. b3 (28. Rd1 f5 $18)) 25... Kf8 $16 {[%emt 0:01:34]} 26. Qd2 {[%emt 0:02:05] White is much more active.} ({White should try} 26. b3 $16) 26... Rab8 $1 $11 {[%emt 0:02:31]} 27. Ra7 {[%emt 0:00:16]} Ra8 $1 {[%emt 0:00:21]} 28. Rb7 {[%emt 0:00:30] Rd1 is the strong threat.} (28. Rxa8 {simplifies} Rxa8 29. h4 Bc6 30. h5) 28... Rab8 $1 {[%emt 0:00:05]} 29. Rxb8 {[%emt 0:00:29]} (29. Qh6+ {keeps more tension.} Kg8 30. Ra7 Ra8 31. Qe3) 29... Rxb8 {[%emt 0:00:06]} 30. Rd1 {[%emt 0:00:02]} Bc6 {[%emt 0:01:57]} 31. Bf3 {[%emt 0:00:14]} Rb7 {[%emt 0:03:28]} 32. Qa5 $36 {[%emt 0:01:18][%mdl 2048] White is pushing.} Rd7 {[%emt 0:03:23]} (32... Qc7 $1 $11 {keeps the balance.} 33. Qxa6 Ra7 34. Rd8+ Qxd8 35. Qxa7 Bxe4) 33. Rxd7 $16 {[%emt 0:00:09]} ({Don't play} 33. Qxa6 Rxd1+ 34. Bxd1 Bxe4 $11) 33... Qxd7 {[%emt 0:00:03]} 34. Qxa6 {[%emt 0:00:06]} Bxe4 {[%emt 0:01:25]} 35. Qxf6+ {[%emt 0:00:15][%mdl 4096] Endgame. KQB-KQB} Kg8 {[%emt 0:00:04][%cal Od7d2]} 36. a3 {[%emt 0:01:01]} (36. Bxe4 $2 Qd1#) 36... Bxf3 {[%emt 0:00:14]} 37. Qxf3 {[%emt 0:00:52]} Qd4 {[%emt 0:00:59]} 38. Qb3+ {[%emt 0:00:45]} Kg7 {[%emt 0:00:13]} 39. Qxb5 {[%emt 0:00:41]} (39. h4 $16) 39... e4 $11 {[%emt 0:00:11] The position is equal.} 40. Qe2 {[%emt 0:00:49] Strongly threatening c3.} Qg1+ $1 {[%emt 0:00:10]} 41. Ka2 {[%emt 0:02:58]} e3 {[%emt 0:00:04] Weighted Error Value: White=0.22 (precise) /Black=0.21 (precise) .  Mistake:       	White=5     	Black=5      Inaccurate:     	White=2     	Black=1      OK:         	White=10    	Black=7      Best:        	White=3     	Black=6      Strong:       	White=4     	Black=4} 1/2-1/2

[Event "4NCL 2023-2024"]
[Site "Daventry"]
[Date "2024.05.06"]
[Round "11.37"]
[White "Pozimski, Szymon"]
[Black "Yao, Lan"]
[Result "1/2-1/2"]
[ECO "E05"]
[WhiteElo "2018"]
[BlackElo "2382"]
[Annotator "TA"]
[PlyCount "101"]
[EventDate "2023.11.11"]
[EventType "team-tourn"]
[EventCountry "ENG"]
[SourceTitle "playchess.com"]
[Source "ChessBase"]
[SourceQuality "1"]
[TimeControl "40/6000+30:3000+30"]

{[%evp 26,101,0,0,42,45,39,50,49,45,42,46,82,63,62,57,73,70,89,96,110,46,29,6,54,60,57,69,65,80,75,64,77,70,88,93,91,96,94,108,112,0,0,0,0,0,0,0,0,0,0,0,0,0,1,4,8,8,27,8,36,28,126,129,135,123,136,132,146,156,145,0,112,0,130,0,119,0]} 1. Nf3 {[%emt 0:00:01]} d5 {[%emt 0:00:08]} 2. d4 {[%emt 0:00:08]} Nf6 {[%emt 0:00:06]} 3. g3 {[%emt 0:00:07]} e6 {[%emt 0:02:31]} 4. c4 {[%emt 0:00:21]} Be7 {[%emt 0:00:27]} 5. Bg2 {[%emt 0:00:05]} O-O {[%emt 0:00:09]} 6. O-O {[%emt 0:00:03]} dxc4 {[%emt 0:00:04]} 7. Qa4 {[%emt 0:00:05]} a6 {[%emt 0:00:25]} 8. Qxc4 {[%emt 0:00:02]} b5 {[%emt 0:00:27]} 9. Qc2 {[%emt 0:00:06]} Bb7 {[%emt 0:00:05]} 10. Bg5 {[%emt 0:00:13]} Nbd7 {[%emt 0:02:35]} 11. Bxf6 {[%emt 0:00:02]} Nxf6 {[%emt 0:00:39]} 12. Nbd2 {[%emt 0:00:02]} Rc8 {[%emt 0:03:39]} 13. Nb3 {[%emt 0:00:09]} Be4 {[%emt 0:01:04]} 14. Qc3 {[%emt 0:00:27]} Nd7 {[%emt 0:30:11]} 15. Rfd1 {[%emt 0:18:33]} Qe8 {[%emt 0:03:24]} 16. Ne5 {[%emt 0:08:25]} Bxg2 {[%emt 0:04:43] White is slightly better.} 17. Nxd7 $1 {[%emt 0:00:02]} Qxd7 {[%emt 0:01:38]} 18. Kxg2 {[%emt 0:03:09]} Rfd8 {[%emt 0:04:09]} 19. Qf3 {[%emt 0:09:00]} Qe8 {[%emt 0:14:05]} 20. Rac1 {[%emt 0:07:22]} Rd6 {[%emt 0:08:12]} 21. Rd3 {[%emt 0:20:38]} Bf6 {[%emt 0:07:39]} 22. Qe4 {[%emt 0:20:42]} e5 {[%emt 0:05:22]} 23. dxe5 {[%emt 0:09:28]} ({White should try} 23. Re3 $16 {[%cal Rd4e5]} Re6 24. d5) 23... Bxe5 {[%emt 0:06:27]} 24. Rxd6 {[%emt 0:02:53]} Bxd6 {[%emt 0:01:06]} (24... cxd6 $11 {deserves consideration.} 25. Rd1 g6) 25. Qxe8+ $14 {[%emt 0:00:57]} Rxe8 $16 {[%emt 0:00:01][%mdl 4096] Endgame. KRB-KRN} 26. Kf3 {[%emt 0:00:25]} Kf8 {[%emt 0:05:08]} 27. Rc6 {[%emt 0:01:26]} Ra8 {[%emt 0:00:50]} 28. Nc5 {[%emt 0:03:24]} a5 {[%emt 0:09:16]} 29. Ne4 {[%emt 0:01:43]} Be5 {[%emt 0:00:00]} 30. Rc5 {[%emt 0:00:14]} Bxb2 {[%emt 0:00:00]} 31. Rxb5 {[%emt 0:00:03]} Bd4 {[%emt 0:00:00]} 32. e3 {[%emt 0:00:39]} Bb6 {[%emt 0:00:00] [#]} 33. Nd6 {[%emt 0:02:54]} Bxe3 $11 {[%emt 0:00:00]} 34. Nc4 {[%emt 0:00:14]} Bd4 {[%emt 0:00:00]} 35. Rxa5 {[%emt 0:00:16]} Rd8 {[%emt 0:00:39]} 36. h4 {[%emt 0:00:33]} Ke7 {[%emt 0:01:21]} 37. a4 {[%emt 0:00:49]} Ke6 {[%emt 0:00:47]} 38. Ne3 {[%emt 0:00:25]} c6 {[%emt 0:01:10]} 39. Ra6 {[%emt 0:00:55]} Kd7 {[%emt 0:00:46]} 40. Nf5 {[%emt 0:02:17]} Bc5 {[%emt 0:00:37]} 41. Ra5 {[%emt 0:02:03]} (41. Nxg7 $2 {perishes.} Kc7 42. Nh5 Kb7 $19 (42... Rd2 43. Ra5 $11)) 41... Bf8 {[%emt 0:04:12]} 42. Ke4 {[%emt 0:13:37]} Re8+ {[%emt 0:06:15]} 43. Kd3 {[%emt 0:02:53]} c5 {[%emt 0:00:36] [#]} (43... Rc8 $11) 44. Ra7+ $1 $16 {[%emt 0:11:37]} Ke6 {[%emt 0:00:37]} 45. Ne3 {[%emt 0:00:21] White has more active pieces.} Rd8+ {[%emt 0:01:00]} 46. Kc3 {[%emt 0:01:36]} Be7 {[%emt 0:08:09]} 47. Ra6+ {[%emt 0:05:28]} Ke5 {[%emt 0:01:55]} 48. Ra7 {[%emt 0:00:41]} Ke6 {[%emt 0:00:34]} 49. Ra6+ {[%emt 0:00:19]} Ke5 $1 {[%emt 0:00:15]} 50. Ra7 {[%emt 0:03:19]} Ke6 {[%emt 0:00:07]} 51. Ra6+ {[%emt 0:00:41] Weighted Error Value: White=0.16 (very precise) /Black=0.13 (very precise) .  Mistake:       	White=3     	Black=2      Inaccurate:     	---       	Black=2      OK:         	White=18    	Black=10     Best:        	White=2     	Black=2      Strong:       	White=2     	Black=1} (51. a5 $16) 1/2-1/2

[Event "4NCL 2023-2024"]
[Site "Daventry"]
[Date "2024.05.06"]
[Round "11.38"]
[White "Czopor, Maciej"]
[Black "Manley, Jon P"]
[Result "1/2-1/2"]
[ECO "C44"]
[WhiteElo "2363"]
[BlackElo "2165"]
[Annotator "TA"]
[PlyCount "57"]
[EventDate "2023.11.11"]
[EventType "team-tourn"]
[EventCountry "ENG"]
[SourceTitle "playchess.com"]
[Source "ChessBase"]
[SourceQuality "1"]
[TimeControl "40/6000+30:3000+30"]

{[%evp 9,57,0,0,11,0,14,43,26,100,37,29,-2,-6,0,0,0,-1,-21,0,0,-14,-216,-226,-239,-106,-118,-49,-36,-37,-38,-42,-56,-54,-111,-33,-34,-23,-90,-97,-100,-34,-72,-71,-191,-174,-203,-70,-95,-53,-180]} 1. e4 {[%emt 0:00:03]} e5 {[%emt 0:00:12]} 2. Nf3 {[%emt 0:00:06]} Nc6 {[%emt 0:00:18][%cal Bb8c6,Bc6d4,Bd4f3][%mdl 32]} 3. c3 {[%emt 0:00:08]} d5 {[%emt 0:06:25]} 4. Qa4 {[%emt 0:00:25]} Bd7 {[%emt 0:07:06]} 5. exd5 {[%emt 0:00:16]} Nd4 $1 {[%emt 0:00:09]} 6. Qd1 {[%emt 0:00:05]} Nxf3+ {[%emt 0:00:16]} 7. Qxf3 {[%emt 0:00:05]} f5 {[%emt 0:00:59]} 8. d4 {[%emt 0:17:23] White is slightly better.} e4 {[%emt 0:01:15]} (8... exd4 $1 $11 9. cxd4 Bd6) 9. Qe2 {[%emt 0:02:46]} (9. Qg3 $16) 9... Nf6 $14 {[%emt 0:03:44]} 10. Nd2 {[%emt 0:01:35]} Bd6 {[%emt 0:03:04][%cal Oe8g8]} 11. Nc4 {[%emt 0:01:17]} O-O {[%emt 0:11:21]} 12. Nxd6 {[%emt 0:02:29]} cxd6 {[%emt 0:00:05]} 13. Bf4 {[%emt 0:03:24]} Qb6 {[%emt 0:18:23][%cal Oa8c8]} 14. c4 {[%emt 0:02:32]} Rac8 {[%emt 0:07:04]} 15. Rd1 $2 {[%emt 0:02:31] [#]} (15. g3 $11 {and White stays safe.}) 15... e3 $1 $19 {[%emt 0:08:49][%mdl 512]} 16. Bxe3 {[%emt 0:13:09] [#]} (16. Qxe3 Rfe8 (16... Qxb2 17. Qd2 $15) 17. Be5 dxe5 18. dxe5 Rxe5 (18... Qxb2 $2 19. f4 $19) (18... Qxe3+ $2 19. fxe3 Rxe5 20. Rd4 $19) 19. Qxe5 Re8 $19) (16. fxe3 Ne4) 16... Rfe8 {[%emt 0:03:31]} (16... f4 $1 $19 {[%cal Rf4e3]} 17. c5 (17. Bxf4 $2 Rce8 $19) 17... dxc5 18. dxc5 (18. Bxf4 $2 cxd4 19. f3 Rfe8 $19) 18... Qa5+ 19. Bd2 (19. Qd2 $2 Qxd2+ 20. Rxd2 fxe3 $19) 19... Qxc5) 17. g3 $17 {[%emt 0:00:56] [#]} f4 {[%emt 0:14:51]} 18. gxf4 $15 {[%emt 0:00:09]} Ne4 {[%emt 0:06:50] Hoping for ...Qa5+.} 19. Bg2 $1 {[%emt 0:01:14]} Qa5+ {[%emt 0:00:21]} 20. Kf1 {[%emt 0:00:14]} Rxc4 $1 {[%emt 0:00:15]} (20... Qxa2 21. Rc1 $11) 21. Kg1 {[%emt 0:01:57]} (21. Qxc4 $2 Bb5 22. b3 Nc3 $19 (22... Bxc4+ 23. bxc4 Nc3 24. Ra1 $17)) (21. a3 $15) 21... Qc7 {[%emt 0:01:53]} (21... Qxd5 $6 22. h3 $11) ({Better is} 21... Qxa2 $17 {White must now prevent ...Nc3.} 22. Bxe4 Rxe4) 22. h3 {[%emt 0:02:11]} Rc2 {[%emt 0:01:23]} 23. Qf3 {[%emt 0:00:29]} (23. Qd3 $1 $11 Bf5 24. Qb3) 23... Bf5 $17 {[%emt 0:00:54]} 24. Kh2 {[%emt 0:01:33]} Qf7 {[%emt 0:03:39]} ({Black should play} 24... Rxb2 $17 25. a4 Qf7) 25. Rc1 {[%emt 0:56:03]} Rxb2 {[%emt 0:00:16]} 26. Rc4 {[%emt 0:00:00]} (26. a4 $17) 26... h6 {[%emt 0:04:26][%cal Oe4f2][%mdl 1024] Black has strong compensation.} (26... Rxa2 27. Rcc1 $19) 27. Rhc1 {[%emt 0:00:00]} Kh7 {[%emt 0:01:07]} ({And not} 27... Qxd5 28. Rc7 Qe6 (28... Rxa2 $2 29. Qg3 $18) (28... Qxa2 29. Qh5 $16) 29. d5 $11) (27... Rxa2 $19 {[%cal Ob7b5] And now ...b5! would win.} 28. Rc7 Re7 (28... Qxd5 $2 29. Qg3 $18) 29. Rxe7 Qxe7) 28. a4 {[%emt 0:00:00]} a6 {[%emt 0:01:54][%cal Oe8e7]} ({Of course not} 28... Qxd5 $6 29. Rc7 Qe6 30. d5 $11) 29. Kg1 {[%emt 0:00:00] Weighted Error Value: White=0.36/Black=0.29 (precise) .  Loses game:     	White=1     	---        Mistake:       	White=5     	Black=6      Inaccurate:     	White=2     	Black=2      OK:         	White=4     	Black=9      Best:        	White=3     	Black=1      Strong:       	White=1     	Black=1      Brilliant:      	---       	Black=1} ({White should try} 29. Rc7 $15 Re7 (29... Qxd5 $2 {too greedy.} 30. Qh5 $18) 30. Rxe7 Qxe7 31. Qh5) 1/2-1/2

[Event "4NCL 2023-2024"]
[Site "Daventry"]
[Date "2024.05.06"]
[Round "11.39"]
[White "Hariharan, Shambavi"]
[Black "Jackson, James P"]
[Result "0-1"]
[ECO "E65"]
[WhiteElo "1887"]
[BlackElo "2355"]
[Annotator "TA"]
[PlyCount "120"]
[EventDate "2023.11.11"]
[EventType "team-tourn"]
[EventCountry "ENG"]
[SourceTitle "playchess.com"]
[Source "ChessBase"]
[SourceQuality "1"]
[TimeControl "40/6000+30:3000+30"]

{[%evp 19,120,0,0,-47,-59,-89,-85,-94,-95,-100,-96,-100,-101,-119,-116,-144,-134,-144,-144,-146,-129,-130,-121,-224,-182,-314,-251,-442,-433,-441,-345,-458,-460,-463,-435,-443,-400,-400,-400,-393,-393,-399,-393,-373,-361,-396,-368,-373,-373,-373,-349,-373,-373,-522,-519,-516,-456,-460,-407,-508,-506,-4132,-2512,-6399,-8294,-5414,-3551,-29958,-29958,-29961,-29962,-29958,-29960,-29939,-7537,-29974,-29975,-29973,-29975,-29981,-29982,-29982,-29982,-29983,-29983,-29983,-29982,-29982,-29983,-29984,-29985,-29986,-29987,-29987,-29988,-29988,-29989,-29989,-29990,-29991,-29992,-29992,-29993]} 1. d4 {[%emt 0:00:06]} Nf6 {[%emt 0:00:05]} 2. c4 {[%emt 0:00:04]} g6 {[%emt 0:00:05]} 3. Nf3 {[%emt 0:00:23]} Bg7 {[%emt 0:00:05]} 4. g3 {[%emt 0:00:06]} O-O {[%emt 0:00:06]} 5. Bg2 {[%emt 0:00:01]} d6 {[%emt 0:00:26]} 6. Nc3 {[%emt 0:00:45]} c5 {[%emt 0:00:46]} 7. O-O {[%emt 0:00:46]} Nc6 {[%emt 0:00:19]} 8. h3 {[%emt 0:02:03]} cxd4 {[%emt 0:07:46]} 9. Nxd4 {[%emt 0:02:32]} Nxd4 {[%emt 0:00:29]} 10. Qxd4 {[%emt 0:00:10]} Be6 {[%emt 0:00:09][%cal Of6d5]} 11. Qd3 {[%emt 0:08:16]} (11. Qh4 $11) 11... Qc8 $15 {[%emt 0:00:37][%csl LRc4,LRh3]} 12. Nd5 {[%emt 0:09:10]} Nxd5 {[%emt 0:00:27]} (12... Bxh3 $2 {is the wrong capture.} 13. Nxe7+ Kh8 14. Nxc8 $18) 13. cxd5 {[%emt 0:00:09] Black is better.} Bxh3 {[%emt 0:00:07]} 14. Rb1 {[%emt 0:01:15]} Qd7 {[%emt 0:18:20]} 15. b3 {[%emt 0:06:48]} Rfc8 {[%emt 0:01:10]} 16. Bf4 {[%emt 0:05:16]} Rc3 {[%emt 0:06:37]} 17. Qd2 {[%emt 0:01:17]} Rac8 {[%emt 0:00:11]} 18. Rfc1 {[%emt 0:02:45] Repels Rc2} Bxg2 {[%emt 0:00:28]} 19. Kxg2 {[%emt 0:01:09]} Qf5 {[%emt 0:00:09] Black is more active.} 20. Rxc3 {[%emt 0:08:28]} Rxc3 {[%emt 0:00:06]} 21. Rd1 {[%emt 0:05:09]} (21. Re1 $17 {keeps fighting.}) 21... h5 $36 {[%emt 0:04:22][%mdl 2048] Black is on the roll.} 22. Qe1 {[%emt 0:11:53]} (22. Re1 {was worth a try.}) 22... h4 {[%emt 0:09:34]} 23. Qf1 $2 {[%emt 0:11:05]} (23. Rc1 Rxc1 (23... Qxd5+ $2 24. Kg1 $19) 24. Qxc1) 23... Rc2 {[%emt 0:10:27]} 24. f3 {[%emt 0:13:57]} hxg3 {[%emt 0:03:16]} 25. Bxg3 {[%emt 0:02:42]} Rxa2 {[%emt 0:01:36]} 26. Kg1 {[%emt 0:04:49]} Be5 {[%emt 0:03:28]} 27. f4 {[%emt 0:02:55]} Qg4 {[%emt 0:00:12]} 28. Qf3 {[%emt 0:01:11]} Qxf3 {[%emt 0:00:29]} 29. exf3 $19 {[%emt 0:00:07][%mdl 4096] Endgame. KRB-KRB} Bc3 {[%emt 0:00:07]} 30. Rd3 {[%emt 0:02:41]} Bf6 {[%emt 0:00:10]} 31. Bf2 {[%emt 0:00:51]} a6 {[%emt 0:00:05]} 32. Be3 {[%emt 0:02:14]} Kf8 {[%emt 0:00:41]} 33. Kf1 {[%emt 0:00:17]} Ke8 {[%emt 0:00:07]} 34. Ke1 {[%emt 0:00:49]} Kd7 {[%emt 0:00:44]} 35. Kd1 {[%emt 0:00:57]} b5 {[%emt 0:00:35]} 36. Bd2 {[%emt 0:00:51]} a5 {[%emt 0:00:25]} 37. Kc1 {[%emt 0:00:44]} a4 {[%emt 0:03:34]} 38. bxa4 {[%emt 0:00:49]} bxa4 {[%emt 0:00:05] [#] ...Bb2+ would now be deadly.} 39. Bb4 {[%emt 0:01:15]} Rb2 {[%emt 0:00:33]} 40. Bd2 {[%emt 0:01:28]} (40. Ba3 $142 Rb5 41. Kc2) 40... Rb3 {[%emt 0:00:15]} 41. Re3 {[%emt 0:51:09]} Rxe3 {[%emt 0:51:37]} 42. Bxe3 {[%emt 0:00:05] KB-KB} Kc7 {[%emt 0:00:25] [#] White must now prevent ...Kb7.} 43. Kb1 {[%emt 0:00:28]} Kb7 {[%emt 0:00:05]} 44. Ka2 {[%emt 0:00:10]} Ka6 {[%emt 0:00:04]} 45. Ka3 {[%emt 0:00:18]} Kb5 {[%emt 0:00:04]} 46. Bd2 {[%emt 0:01:11]} Bd4 {[%emt 0:00:07] ( -> ...Bg1)} 47. Bc1 {[%emt 0:00:44]} Bc5+ {[%emt 0:00:08] Black mates.} 48. Ka2 {[%emt 0:00:13]} Kc4 {[%emt 0:00:04]} 49. Bd2 {[%emt 0:00:06]} Kxd5 {[%emt 0:00:06]} 50. Ba5 {[%emt 0:00:10]} e6 {[%emt 0:00:06]} 51. Bc3 {[%emt 0:00:32]} Kc4 {[%emt 0:00:07]} 52. Bd2 {[%emt 0:00:07]} Kd3 {[%emt 0:00:11]} 53. Bc1 {[%emt 0:00:06]} Ke2 {[%emt 0:00:31]} 54. Kb2 {[%emt 0:00:13]} Be3 {[%emt 0:00:10]} 55. Bxe3 {[%emt 0:00:11]} Kxe3 {[%emt 0:00:03] KP-KP} 56. Ka3 {[%emt 0:00:06]} d5 {[%emt 0:00:09]} 57. Kxa4 {[%emt 0:00:08]} d4 {[%emt 0:00:05]} 58. Kb3 {[%emt 0:00:03]} d3 {[%emt 0:00:02]} 59. Kc3 {[%emt 0:00:07]} d2 {[%emt 0:00:04]} 60. Kc2 {[%emt 0:00:03]} Ke2 {[%emt 0:00:03] White did not feel at home in the position after the opening.   Weighted Error Value: White=0.90/Black=0.15 (very precise) .  Mistake:       	White=4     	---        Inaccurate:     	White=4     	---        OK:         	White=5     	Black=15     Best:        	White=1     	Black=1} 0-1

[Event "4NCL 2023-2024"]
[Site "Daventry"]
[Date "2024.05.06"]
[Round "11.41"]
[White "Cherniaev, Alexander"]
[Black "Waldhausen Gordon, Frederick"]
[Result "1/2-1/2"]
[ECO "C88"]
[WhiteElo "2363"]
[BlackElo "2358"]
[Annotator "TA"]
[PlyCount "37"]
[EventDate "2023.11.11"]
[EventType "team-tourn"]
[EventCountry "ENG"]
[SourceTitle "playchess.com"]
[Source "ChessBase"]
[SourceQuality "1"]
[TimeControl "40/6000+30:3000+30"]

{[%evp 20,37,5,2,12,2,16,13,18,8,0,18,8,2,8,0,0,0,0,0]} 1. e4 {[%emt 0:09:16]} e5 {[%emt 0:00:04]} 2. Nf3 {[%emt 0:01:13]} Nc6 {[%emt 0:00:03]} 3. Bb5 {[%emt 0:00:16]} a6 {[%emt 0:00:05]} 4. Ba4 {[%emt 0:00:08]} Nf6 {[%emt 0:00:05]} 5. O-O {[%emt 0:00:07]} Be7 {[%emt 0:00:02]} 6. Re1 {[%emt 0:00:19]} b5 {[%emt 0:00:03]} 7. Bb3 {[%emt 0:00:07]} O-O {[%emt 0:00:04]} 8. d4 {[%emt 0:00:08]} Nxd4 {[%emt 0:00:04]} 9. Bxf7+ {[%emt 0:00:14]} Rxf7 {[%emt 0:00:06]} 10. Nxe5 {[%emt 0:00:11]} Rf8 {[%emt 0:00:03]} 11. Qxd4 {[%emt 0:00:31] The position is equal.} Bb7 {[%emt 0:00:04]} 12. Nc3 {[%emt 0:04:42]} c5 $1 {[%emt 0:00:31]} 13. Qd1 {[%emt 0:09:58]} b4 {[%emt 0:01:15]} 14. Nd5 {[%emt 0:00:27]} Nxd5 {[%emt 0:00:04]} 15. exd5 {[%emt 0:00:12]} Bd6 {[%emt 0:00:16]} 16. f4 {[%emt 0:19:02]} Qc7 {[%emt 0:00:32]} 17. c4 {[%emt 0:02:53]} bxc3 {[%emt 0:01:06]} 18. bxc3 {[%emt 0:00:03]} c4 {[%emt 0:00:16]} 19. Be3 {[%emt 0:07:00] Not much happened in this game.   Weighted Error Value: White=0.03 (flawless) /Black=0.00 (flawless) .  OK:         	White=3     	Black=5      Best:        	---       	Black=1      Strong:       	---       	Black=1} 1/2-1/2